Cogmind - Beta 11.1 @@@ ROGUE MODE // 2022.05.16 @ 11:30:23 Player: Flowthing Result: Destroyed by G-47 Trooper with Particle Gun Performance ------------- Evolutions (0) 0 Regions Visited (4) 800 Robots Destroyed (19) 95 Value Destroyed (432) 432 Prototype IDs (3) 60 Alien Tech Used (0) 0 Bonus (0) 0 TOTAL SCORE: 1387 Bonus ------- None Cogmind --------- Core Integrity 0/250 Matter 276/300 Energy 280/280 System Corruption 1% Temperature Cool (18) Movement Rolling (115) Ox1 Location -9/Mines Parts ------- > --- POWER (1) -------- Cooled Ion Engine > --- PROPULSION (2) --- Compact Wheel Compact Wheel > --- UTILITY (2) ------ High-capacity Storage Unit Improved Medium Armor Plating > --- WEAPON (2) ------- EM Pulse Gun Assault Rifle > --- INVENTORY (20) --- Cooled Ion Engine Improved Deuterium Engine Compact Wheel Compact Wheel Small Storage Unit Large Storage Unit High-capacity Battery (250) Medium Matter Pod (100) Improved Targeting Computer Core Analyzer Improved Field Recycling Unit (0) Medium Laser Small Laser Flak Gun Mini Grenade Launcher Great Axe Peak State ------------ > --- POWER ------------ Cooled Ion Engine > --- PROPULSION ------- Compact Wheel Compact Wheel > --- UTILITY ---------- High-capacity Storage Unit Improved Medium Armor Plating > --- WEAPON ----------- Assault Rifle Mini Grenade Launcher > --- INVENTORY -------- Cooled Ion Engine Improved Deuterium Engine Compact Wheel Compact Wheel Small Storage Unit Large Storage Unit High-capacity Battery Medium Matter Pod Improved Targeting Computer Core Analyzer Improved Field Recycling Unit EM Pulse Gun Medium Laser Small Laser Flak Gun Great Axe [Rating: 16] Favorites ----------- Power Cooled Ion Engine Engine Cooled Ion Engine Propulsion Wheel Leg Aluminum Leg Wheel Wheel Utility High-capacity Storage Unit Device Shield Generator Storage High-capacity Storage Unit Processor Signal Interpreter Protection Improved Medium Armor Plating Weapon Medium Laser Energy Gun Medium Laser Ballistic Gun Assault Rifle Ballistic Cannon Light Cannon Launcher Mini Grenade Launcher Build | -11 -10 -10 -10 -9 ------- Run | Scr Mat Min Exi Min Slots Evolved . | . . . . . Power . | . . . . . Propulsion . | . . . . . Utility . | . . . . . Weapon . | . . . . . Parts Attached 19 | . 7 4 5 3 Power 2 | . 1 . 1 . Engine 2 | . 1 . 1 . Core . | . . . . . Reactor . | . . . . . Propulsion 6 | . 2 2 2 . Treads . | . . . . . Leg 1 | . . 1 . . Wheel 5 | . 2 1 2 . Hover . | . . . . . Flight . | . . . . . Utility 6 | . 3 1 1 1 Device 1 | . 1 . . . Storage 3 | . 2 1 . . Processor 1 | . . . 1 . Hackware . | . . . . . Protection 1 | . . . . 1 Artifact . | . . . . . Weapon 5 | . 1 1 1 2 Energy Gun 1 | . . . . 1 Energy Cannon . | . . . . . Ballistic Gun 1 | . . . 1 . Ballistic Cannon 2 | . 1 1 . . Launcher 1 | . . . . 1 Special Weapon . | . . . . . Impact Weapon . | . . . . . Slashing Weapon . | . . . . . Piercing Weapon . | . . . . . Special Melee Weapon . | . . . . . Unidentified Prototypes 1 | . 1 . . . Parts Lost 7 | . . 7 . . Power 1 | . . 1 . . Propulsion 3 | . . 3 . . Utility 1 | . . 1 . . Weapon 2 | . . 2 . . Highest Loss Streak 4 | . . 4 . . To Critical Strikes . | . . . . . Average Slot Usage (%) 99 | . 99 98 100 100 Engine 13 | . 14 13 14 14 Leg 3 | . 6 . . . Wheel 24 | . 21 26 28 28 Device 6 | . 13 . . . Storage 19 | . 14 27 26 14 Protection 1 | . . . . 13 Energy Gun 14 | . 14 14 14 13 Ballistic Gun 4 | . . . 14 14 Ballistic Cannon 8 | . 13 13 . . Naked Turns . | . . . . . Heaviest Build 73 | 13 55 73 72 59 Greatest Support 32 | 20 20 20 32 32 Greatest Overweight (x) 20 | . 2 20 2 1 Average Overweight (x) 1 | . 1 3 1 1 Largest Inventory Capacity 20 | 8 20 20 20 20 Average Capacity 19 | 8 19 20 20 20 Most Carried 16 | 6 13 13 10 16 Average Carried 10 | 6 10 10 8 14 Final Capacity 20 | 8 20 20 20 20 Final Carried 16 | 6 13 11 9 16 Class Distribution -------------------- 100% | Mutant Dominant Class ---------------- Mutant | -10/Materials Mutant | -10/Mines Mutant | -10/Exiles Mutant | -9/Mines Resources | -11 -10 -10 -10 -9 ----------- Run | Scr Mat Min Exi Min Matter Collected 574 | 200 180 118 40 36 Remotely . | . . . . . Salvage Created 490 | . 366 89 . 35 Parts 34 | . 26 6 . 2 Haulers Intercepted . | . . . . . Recyclers Shooed . | . . . . . Parts Field Recycled . | . . . . . Retrieved Matter . | . . . . . Parts Self-Destructed . | . . . . . Prevented . | . . . . . Kills | -11 -10 -10 -10 -9 ------- Run | Scr Mat Min Exi Min Combat Hostiles Destroyed 16 | . 10 5 . 1 Guns 6 | . 4 2 . . Cannons 9 | . 6 3 . . AOE 1 | . . . . 1 Classes Destroyed 4 | . 4 . . . Recycler 1 | . 1 . . . Watcher 2 | . 2 . . . Swarmer 9 | . 6 3 . . Grunt 7 | . 4 2 . 1 Best Kill Streak 3 | . 3 3 . 1 Combat Bots Only 3 | . 3 3 . 1 Max Kills in Single Turn 1 | . 1 1 . 1 Gunslinging . | . . . . . Exploded 1 | . . . . 1 Melee . | . . . . . Uniques/NPCs Destroyed . | . . . . . Combat | -11 -10 -10 -10 -9 -------- Run | Scr Mat Min Exi Min Damage Taken 864 | . 257 558 . 49 Core 255 | . 45 193 . 17 Absorbed by Shields 115 | . 105 10 . . Core Remaining (%) 100 | 100 . . . . Volleys Fired 53 | . 36 15 . 2 Largest 2 | . 2 2 . 2 Hottest 85 | . 85 85 . 60 Shots Fired 105 | . 72 30 . 3 Gun 53 | . 36 15 . 2 Cannon 51 | . 36 15 . . Launcher 1 | . . . . 1 Special . | . . . . . Kinetic 52 | . 36 15 . 1 Thermal 51 | . 36 15 . . Explosive 1 | . . . . 1 Electromagnetic 1 | . . . . 1 Robot Hit Streak 11 | . 5 11 . . Robot Miss Streak 3 | . 3 3 . . Penetration Max . | . . . . . Secondary Targets . | . . . . . Shots Hit Robots 56 | . 36 20 . . Core Hits 26 | . 18 7 . 1 Critical Kills . | . . . . . Critical Parts Destroyed . | . . . . . Critical Strikes 3 | . 3 . . . Burn 1 | . 1 . . . Blast 2 | . 2 . . . Melee Attacks . | . . . . . Impact . | . . . . . Slashing . | . . . . . Piercing . | . . . . . Sneak Attacks . | . . . . . Combat Hostiles . | . . . . . Follow-up Attacks . | . . . . . Damage Inflicted 991 | . 583 301 . 107 Guns 327 | . 215 112 . . Cannons 557 | . 368 189 . . Explosions 107 | . . . . 107 Melee . | . . . . . Ramming . | . . . . . Kinetic 557 | . 368 189 . . Thermal 367 | . 215 112 . 40 Explosive 67 | . . . . 67 Electromagnetic . | . . . . . Impact . | . . . . . Slashing . | . . . . . Piercing . | . . . . . Highest Corruption 1 | . 1 1 1 1 Average Corruption 1 | . 1 1 1 1 Corruption Purged . | . . . . . Corruption Blocked . | . . . . . Effects 7 | . 1 2 2 2 Message Errors 1 | . 1 . . . Matter Fused 2 | . . 1 1 . Heat Flow Errors 1 | . . . . 1 Energy Discharges 1 | . . . 1 . Data Loss (minor) 2 | . . 1 . 1 Overload Shots . | . . . . . Overflow Damage 13 | . 13 . . . Projectiles 13 | . 13 . . . Explosions . | . . . . . Melee . | . . . . . Knockbacks 8 | . 7 1 . . Impact . | . . . . . Kinetic 8 | . 7 1 . . Secondary . | . . . . . Self-Inflicted Damage . | . . . . . Shots . | . . . . . Rammed . | . . . . . Targets Rammed . | . . . . . Kicked . | . . . . . Crushed . | . . . . . Highest Temperature 167 | . 126 167 . 115 Average Temperature 51 | . 48 60 . 45 Received Heat Transfer 132 | . 30 75 . 27 Siege Activations . | . . . . . Robots Corrupted . | . . . . . Combat Hostiles . | . . . . . Parts Fried . | . . . . . Impact Corruptions . | . . . . . Robots Melted . | . . . . . Combat Hostiles . | . . . . . Parts Melted . | . . . . . Heat Transferred 1086 | . 703 333 . 50 Parts Sabotaged . | . . . . . Parts Stolen . | . . . . . Parts Stripped . | . . . . . Power Chain Reactions . | . . . . . Missiles Intercepted . | . . . . . Alert | -11 -10 -10 -10 -9 ------- Run | Scr Mat Min Exi Min Peak Influence 287 | . 287 159 . 77 Initial 9 | . . 9 . . Average 92 | . 93 133 . 6 Maximum Alert Level 1 | . 1 . . . Low Security (%) 95 | 100 92 100 . 100 Level 1 4 | . 7 . . . Level 2 . | . . . . . Level 3 . | . . . . . Level 4 . | . . . . . Level 5 . | . . . . . High Security . | . . . . . Max Security . | . . . . . Squads Dispatched 1 | . . . . 1 Investigation 1 | . . . . 1 Extermination . | . . . . . Reinforcement . | . . . . . Assault . | . . . . . Garrison . | . . . . . Intercept . | . . . . . Searches Triggered . | . . . . . Construction Impeded . | . . . . . Haulers Reinforced . | . . . . . Active Scanning Responses . | . . . . . Cargo Convoy Interrupts . | . . . . . Stealth | -11 -10 -10 -10 -9 --------- Run | Scr Mat Min Exi Min Distress Signals 1 | . 1 . . . Communications Jammed . | . . . . . Distress Signals . | . . . . . Times Spotted 25 | . 16 7 . 2 Peak Tracking Total 3 | . 3 3 . 2 Tactical Retreats 1 | . . 1 . . Traps | -11 -10 -10 -10 -9 ------- Run | Scr Mat Min Exi Min Traps Triggered 1 | . 1 . . . Indirectly . | . . . . . Trap Hack Attempts . | . . . . . Triggered . | . . . . . Disarmed . | . . . . . Reprogrammed . | . . . . . Reused . | . . . . . Traps Extracted . | . . . . . Installed . | . . . . . Triggered . | . . . . . Machines | -11 -10 -10 -10 -9 ---------- Run | Scr Mat Min Exi Min Machines Disabled 4 | . 1 2 . 1 Max in Single Turn 1 | . 1 1 . 1 Machines Sabotaged . | . . . . . Garrisons Compromised . | . . . . . Overloaded Fab Kills . | . . . . . Hacking | -11 -10 -10 -10 -9 --------- Run | Scr Mat Min Exi Min Machines Accessed 7 | . 6 . . 1 Terminals 5 | . 5 . . . Fabricators . | . . . . . Repair Stations . | . . . . . Recycling Units 1 | . 1 . . . Scanalyzers . | . . . . . Garrison Access . | . . . . . Total Hacks 15 | . 14 . . 1 Successful 13 | . 12 . . 1 Failed 2 | . 2 . . . Catastrophic . | . . . . . Database Lockouts . | . . . . . Manual 9 | . 9 . . . Terminals 10 | . 10 . . . Fabricators . | . . . . . Repair Stations . | . . . . . Recycling Units 4 | . 4 . . . Scanalyzers . | . . . . . Garrison Access . | . . . . . Terminal Hacks 4 | . 3 . . 1 Prototype ID Bank 1 | . 1 . . . Open Door 1 | . . . . 1 Alert Level 1 | . 1 . . . Locate Traps 1 | . 1 . . . Fabricator Hacks . | . . . . . Repair Station Hacks . | . . . . . Recycling Unit Hacks 4 | . 4 . . . Report Inventory 1 | . 1 . . . Retrieve Matter 2 | . 2 . . . Retrieve Components 1 | . 1 . . . Scanalyzer . | . . . . . Garrison Access Hacks . | . . . . . Unauthorized Hacks 5 | . 5 . . . Terminals 5 | . 5 . . . Botnet 5 | . 5 . . . Fabricators . | . . . . . Repair Stations . | . . . . . Recycling Units . | . . . . . Scanalyzers . | . . . . . Garrison Access . | . . . . . Data Cores Recovered . | . . . . . Used . | . . . . . Hacking Detections 4 | . 4 . . . Full Trace Events . | . . . . . Feedback Events . | . . . . . Feedback Blocked . | . . . . . Robot Schematics Acquired . | . . . . . Robots Built . | . . . . . Authchips . | . . . . . Time . | . . . . . Total Robot Build Rating . | . . . . . Part Schematics Acquired . | . . . . . Parts Built . | . . . . . Authchips . | . . . . . Time . | . . . . . Total Part Build Rating . | . . . . . Parts Repaired . | . . . . . Time . | . . . . . Parts Recycled . | . . . . . Recycled Matter . | . . . . . Retrieved Matter . | . . . . . Retrieved Components 1 | . 1 . . . Parts Scanalyzed . | . . . . . Part Schematics Acquired . | . . . . . Parts Damaged . | . . . . . Bothacking | -11 -10 -10 -10 -9 ------------ Run | Scr Mat Min Exi Min Used RIF Installer . | . . . . . Robots Hacked . | . . . . . Non-combat . | . . . . . Combat . | . . . . . Robot Hacks Applied . | . . . . . Relay Couplers Released . | . . . . . Fabnet Peak Effective % . | . . . . . Robots Rewired . | . . . . . Allies Hacked . | . . . . . Hacks Repelled . | . . . . . Allies | -11 -10 -10 -10 -9 -------- Run | Scr Mat Min Exi Min Total Allies . | . . . . . Largest Group . | . . . . . Highest-Rated Group . | . . . . . Highest-Rated Ally . | . . . . . Total Orders . | . . . . . Ally Attacks . | . . . . . Total Damage . | . . . . . Kills . | . . . . . Allies Corrupted . | . . . . . Allies Melted . | . . . . . Intel | -11 -10 -10 -10 -9 ------- Run | Scr Mat Min Exi Min Robot Analysis Total . | . . . . . Derelict Logs Recovered 2 | . . 1 . 1 Drone Launches . | . . . . . Drone Recoveries . | . . . . . Exploration | -11 -10 -10 -10 -9 ------------- Run | Scr Mat Min Exi Min Turns Passed 1817 | 4 853 343 450 167 Spaces Moved 1278 | 4 568 234 347 125 Core 1 | . . 1 . . Treads . | . . . . . Legs 91 | 4 87 . . . Wheels 1186 | . 481 233 347 125 Hover . | . . . . . Flight . | . . . . . Fastest Speed 110 | 120 110 110 115 115 Average Speed 125 | 120 124 129 127 115 Slowest Speed 1050 | 120 260 1050 130 115 Overloaded Moves . | . . . . . Propulsion Burnouts . | . . . . . Robots Hopped . | . . . . . Cave-ins Triggered . | . . . . . Exploration Rate (%) 46 | 2 87 43 65 35 Regions Visited 4 Branch Regions 3 Pre-discovered Areas . | . . . . . Known Exits Taken 1 | . . . 1 . Unknown Exits Taken 3 | 1 1 1 . . Scrap Searched 2 | . . 1 . 1 Spaces Dug . | . . . . . Terrain Destroyed 15 | . . . . 15 Melee . | . . . . . Projectile . | . . . . . AOE 15 | . . . . 15 Terrain Rammed . | . . . . . Walls Destroyed . | . . . . . Machines Disabled . | . . . . . Actions | -11 -10 -10 -10 -9 --------- Run | Scr Mat Min Exi Min Total 1398 | 3 644 253 353 145 Wait 22 | . 17 . . 5 Move 1274 | 3 567 233 346 125 Hop . | . . . . . Pick Up 20 | . 9 1 2 8 Fast Attach 4 | . 3 . . 1 Attach 7 | . . 3 4 . Detach 3 | . 2 . . 1 Swap 8 | . 4 1 1 2 Drop 7 | . 6 . . 1 Fire 53 | . 36 15 . 2 Melee . | . . . . . Ram . | . . . . . Kick . | . . . . . Crush . | . . . . . Escape Stasis . | . . . . . Rewire . | . . . . . Trap . | . . . . . Miscellaneous . | . . . . . Route ------- -11/Scrapyard -10/Materials (discovered 5 exits: [*Mat x3] / [*Min x2]) -10/Mines -10/Exiles (discovered 2 exits: *Min x2) -9/Mines History --------- Turn | Location | Event 1 | -11/Scrapyard | Discovered new exit (range 1) 5 | -11/Scrapyard | Entered Materials 283 | -10/Materials | Discovered new exit (range 4) 312 | -10/Materials | Build established: Mutant 369 | -10/Materials | Discovered new exit (range 5) 495 | -10/Materials | Discovered new exit (range 16) 569 | -10/Materials | Discovered new exit (range 15) 725 | -10/Materials | Discovered new exit (range 14) 858 | -10/Materials | Entered Mines 1169 | -10/Mines | Assembled infested the area 1176 | -10/Mines | Learned Materials emergency access door positions 1185 | -10/Mines | Deemed a non-threat by the Exiles lab entrance 1186 | -10/Mines | Discovered new exit (range 5) 1195 | -10/Mines | Core integrity fell below 50% 1197 | -10/Mines | Core integrity fell below 20% 1201 | -10/Mines | Entered Exiles 1222 | -10/Exiles | Discovered new exit (range 15) 1231 | -10/Exiles | Lost 4 parts (1p2n1w) 1263 | -10/Exiles | Met 8R-AWN 1283 | -10/Exiles | Met EX-HEX 1375 | -10/Exiles | Met EX-DEC 1413 | -10/Exiles | Visited The Gauntlet 1601 | -10/Exiles | Discovered new exit (range 14) 1650 | -10/Exiles | Identified exit to Mines 1651 | -10/Exiles | Entered Mines 1657 | -9/Mines | Met a Derelict shopkeep closing up shop 1695 | -9/Mines | Learned 2 Materials zone layouts 1818 | -9/Mines | Destroyed by G-47 Trooper with Particle Gun Last Messages --------------- 01668_ Acquired Great Axe. 01670_ Acquired Imp. Deuterium Engine. 01673_ Acquired Flak Gun. 01677_ Acquired Imp. Field Recycling Unit. 01685_ System corrupted: Heat flow error (+135). 01695_ Acquired derelict log, extracted data. Data stored: Materials zone layouts (x2). 01699_ Acquired Imp. Targeting Computer. 01703_ Acquired Mni. Grenade Launcher. 01717_ Dropped Aluminum Leg. 01727_ Acquired Com. Wheel. 01738_ R-06 Scavenger collects Aluminum Leg. 01767_ System corrupted: Component data lost. 01797_ Searching scrap... 01797_ Found Visual Processing Unit. 01797_ Found Imp. Hover Unit. 01797_ Found 36 Matter. 01798_ Acquired 27 matter. 01799_ Acquired 9 matter. 01804_ G-34 Mercenary destroyed. Map ----- +----------------------------------------------------+ | #??????## ##?# #???###???????? | | #?????## #?# ## #?????????????? | | #?????# #?# ## #?????????????? | | ## ####?????# ##?# ## ##????????????? | | ?# #????????# ##?## ## ##???????????? | | ?# #???????## #??# #???????????? | | ?# #?####### #### #???????????? | | ?# ### # #???????????? | | ?# ## = #???????????? | | ?# [ ####### #???????????? | | ?# ##### ##?????## ##??????????? | | ?# ##???####???????## ####???????? | | ?## ##????????????????## ##??????? | | ??## ##??????????????????# ##?????? | | ?? ?????????????????## #?????? | | ? ???????????????## #?????? | | #### ??????????????# #?????? | | ????# ????????????## ##?????? | | ?????? ??????????## ##??????? | | ???????? #????????## u ##????#?? | | ???????? ##?????#### ## #?? | | ?????????##?????## #??? | | ????????????????# ! ##??? | | ????????????????# = ## #???? | | ????????????????# # #### #???? | | ????????????????# ## @##???# #???? | | ????????????????# #?# #?????####???? | | ????????????????# ????# #????????????? | | ????????????????##?????# #????????????? | | ???????????????????????# #????????????? | | ???????????????????????# g#????????????? | | ???????????????????????# #????????????? | | ???????????????????????# #????????????? | | ??????????????????????? ????????????? | | ??????????????????????? ????????????? | | ??????????????????????? ????????????? | | ??????????????????????? = ????????????? | | ??????????????????????? *% ???????????? | | ?????????????????????? ???????????? | | ?????????????????????? ???????????? | | ??????????????????????? ???????????? | | ???????????????????????####????????????? | | ???????????????????????????????????????? | | ???????????????????????????????????????? | | ???????????????????????????????????????? | | ???????????????????????????????????????? | | ???????????????????????????????????????? | | ???????????????????????????????????????? | | ???????????????????????????????????????? | | ???????????????????????????????????????? | +----------------------------------------------------+ Best States ------------- Heat Dissipation 25 Energy Generation 14 Energy Capacity 280 Matter Stores 300 Matter Capacity 300 Sight Range 16 Terrain Scan Density 10 Armor Coverage 225 Evasion (%) 55 Item Schematics ----------------- None Robot Schematics ------------------ None Fabricated ------------ Nothing Alien Tech Used ----------------- None Achievements -------------- None Challenges ------------ None Game ------ Seed MassSignalVibroblade Manual? 0 Play Time 00:13:49 Cumulative 39.6 hours Start 2022.05.16 @ 11:13:27 End 2022.05.16 @ 11:30:23 Sessions 1 Manual Loads 0 Difficulty Rogue Special Mode None Game No. 41 Rogue 41 Adventurer 0 Explorer 0 Win Type - Total 0 Types 0/0/0/0/0/0/0/0/0 Lore% 29 Gallery% 42 Achievement% 29 Wizard Run 0 Options --------- ASCII 0 Keyboard 1 Movement Numpad Keybinds 0 Fullscreen 1 Font 36/Smallcaps Map View 76x50 Tactical HUD 1 Map Filters NONE Filters NONE Steam 1 RUN: 27ac79ec-b71b-4e01-9fa7-e3f9bcd075b0